fUSD/lending_fUSD_20250618
["ID","MTS","AMOUNT","RATE_DAILY","PERIOD"]
[366461941,1750267833272,-301.28,0.00016112,2]
[366461942,1750267833282,-305.33,0.00016112,2]
[366461943,1750267833292,-503.71,0.00016112,2]
[366461944,1750267833302,-303.16,0.00016112,2]
[366461945,1750267833312,-2973.29500005,0.00016112,2]
[366461946,1750267833322,-495.8,0.00016112,2]
[366461947,1750267833332,-492.96,0.00016112,2]
[366461948,1750267833342,-499.36,0.00016113,2]
[366461949,1750267833353,-500.2,0.00016113,2]
[366461950,1750267833363,-302.65,0.00016113,2]
[366461951,1750267833373,-503.29,0.00016113,2]
[366461952,1750267833384,-302.29,0.00016113,2]
[366461953,1750267833394,-499.23,0.00016113,2]
[366461954,1750267833405,-505.4,0.00016113,2]
[366461955,1750267833415,-303.57,0.00016113,2]
[366461956,1750267833425,-493.5,0.00016113,2]
[366461957,1750267833435,-496.46,0.00016113,2]
[366461958,1750267833445,-300.32,0.00016113,2]
[366461959,1750267833455,-506.1,0.00016113,2]
[366461960,1750267833465,-301.22,0.00016114,2]
[366461961,1750267833476,-501.05,0.00016114,2]
[366461962,1750267833485,-490.97,0.00016114,2]
[366461963,1750267833495,-305.3,0.00016114,2]
[366461964,1750267833505,-302.84,0.00016114,2]
[366461965,1750267833516,-500.68,0.00016114,2]
[366461966,1750267833526,-491.1,0.00016114,2]
[366461967,1750267833536,-498.7,0.00016114,2]
[366461968,1750267833546,-301.88,0.00016114,2]
[366461969,1750267833557,-304.93,0.00016114,2]
[366461970,1750267833566,-492.38,0.00016114,2]
[366461971,1750267833576,-499.2,0.00016114,2]
[366461972,1750267833586,-304.78,0.00016114,2]
[366461973,1750267833596,-505.0,0.00016115,2]
[366461974,1750267833606,-500.13,0.00016115,2]
[366461975,1750267833616,-490.75,0.00016115,2]
[366461976,1750267833626,-508.4,0.00016115,2]
[366461977,1750267833636,-304.89,0.00016116,2]
[366461978,1750267833646,-304.56,0.00016117,2]
[366461979,1750267833655,-497.9,0.00016119,2]
[366461980,1750267833665,-504.27,0.00016123,2]
[366461981,1750267833676,-490.57,0.00016123,2]
[366461982,1750267833685,-491.1,0.00016128,2]
[366461983,1750267833695,-305.54,0.00016128,2]
[366461984,1750267833706,-509.7,0.00016128,2]
[366461985,1750267833715,-346.07329953,0.00016128,2]
[366461986,1750267833819,-161.21670047,0.00016128,2]
[366461987,1750267833829,-108.0248235,0.00016131,2]
[366461988,1750267833843,-196.3951765,0.00016131,2]
[366461989,1750267833855,-304.0,0.00016133,2]
[366461990,1750267833864,-581.98414273,0.00016138,2]
[366461991,1750267833875,-1446.7187223,0.00016138,2]
[366461992,1750267833895,-279.74419682,0.00016138,2]
[366461999,1750267838158,-492.92,0.00016105,2]
[366462000,1750267838168,-1541.60877659,0.00016138,2]
[366462001,1750267838206,-795.4281569,0.00016138,2]
[366462002,1750267838215,-494.44,0.00016148,2]
[366462003,1750267838225,-494.72,0.00016154,2]
[366462004,1750267838235,-227.4447821,0.00016154,2]
[366462005,1750267838246,-278.5052179,0.00016154,2]
[366462006,1750267838256,-294.24641504,0.00016156,2]
[366462007,1750267838268,-9.03358496,0.00016156,2]
[366462008,1750267838278,-349.30126668,0.00016183,2]
[366462009,1750267838321,-156.02873332,0.00016183,2]
[366462010,1750267838331,-508.94,0.00016183,2]
[366462011,1750267838340,-302.44,0.00016185,2]
[366462012,1750267838350,-492.86,0.00016219,2]
[366462013,1750267838360,-508.69,0.00016233,2]
[366462014,1750267838370,-502.58,0.00016233,2]
[366462015,1750267838380,-1097.85743209,0.0001625,2]
[366462016,1750267838390,-5888.82275,0.0001627,2]
[366462017,1750267838401,-2376.3122,0.00016274,2]
[366462018,1750267838411,-504.56,0.00016276,2]
[366462019,1750267838420,-303.84,0.00016276,2]
[366462020,1750267838430,-301.17,0.00016277,2]
[366462022,1750267838439,-502.86,0.00016279,2]
[366462024,1750267838450,-503.13,0.00016279,2]
[366462026,1750267838459,-303.14,0.00016282,2]
[366462028,1750267838468,-500.23,0.00016292,2]
[366462030,1750267838478,-508.46,0.00016294,2]
[366462032,1750267838487,-34792.407567,0.000163,2]
[366462034,1750267838497,-5888.82275,0.000163,2]
[366462036,1750267838506,-2989.2620241,0.000163,2]
[366462038,1750267838516,-501.06,0.00016301,2]
[366462040,1750267838526,-508.59,0.00016305,2]
[366462042,1750267838535,-500.7,0.00016305,2]
[366462044,1750267838545,-492.71,0.00016306,2]
[366462046,1750267838555,-303.52,0.00016309,2]
[366462047,1750267838565,-501.17,0.0001631,2]
[366462049,1750267838574,-505.81,0.0001631,2]
[366462050,1750267838583,-301.57,0.0001631,2]
[366462051,1750267838593,-300.85,0.0001631,2]
[366462052,1750267838602,-302.16,0.00016313,2]
[366462053,1750267838612,-493.02,0.00016322,2]
[366462054,1750267838621,-302.24,0.00016333,2]
[366462055,1750267838630,-5888.82275,0.0001634,2]
[366462056,1750267838640,-200.0,0.0001634,2]
[366462057,1750267838648,-500.48,0.00016344,2]
[366462058,1750267838658,-491.79,0.00016354,2]
[366462059,1750267838667,-305.72,0.00016363,2]
[366462060,1750267838676,-495.39,0.00016365,2]
[366462061,1750267838685,-502.99,0.00016365,2]
[366462062,1750267838694,-303.54,0.00016365,2]
[366462063,1750267838703,-505.37,0.00016375,2]
[366462064,1750267838712,-502.56,0.00016375,2]
[366462065,1750267838721,-150.0,0.0001638,2]
[366462066,1750267838730,-262.0,0.00016388,2]
[366462067,1750267838739,-301.22,0.00016395,2]
[366462068,1750267838749,-499.61,0.00016395,2]
[366462069,1750267838758,-303.85,0.00016395,2]
[366462071,1750267838767,-493.15,0.000164,2]
[366462073,1750267838776,-300.64,0.000164,2]
[366462075,1750267838786,-302.08,0.000164,2]
[366462077,1750267838795,-303.29,0.000164,2]
[366462079,1750267838804,-41447.30678484,0.000164,2]
[366462081,1750267838814,-493.97,0.000164,2]
[366462083,1750267838823,-498.5,0.000164,2]
[366462085,1750267838833,-506.25,0.000164,2]
[366462087,1750267838847,-491.91,0.000164,2]
[366462089,1750267838857,-498.91,0.000164,2]
[366462091,1750267838866,-255.68,0.00016428,2]
[366462093,1750267838875,-303.96,0.00016437,2]
[366462095,1750267838885,-501.75,0.00016437,2]
[366462097,1750267838895,-151.0,0.00016438,2]
[366462099,1750267838904,-151.0,0.00016438,2]
[366462101,1750267838915,-151.0,0.00016438,2]
[366462103,1750267838925,-151.0,0.00016438,2]
[366462105,1750267838934,-151.0,0.00016438,2]
[366462107,1750267838943,-151.0,0.00016438,2]
[366462109,1750267838953,-151.0,0.00016438,2]
[366462111,1750267838963,-151.0,0.00016438,2]
[366462113,1750267838971,-151.0,0.00016438,2]
[366462115,1750267838981,-151.0,0.00016438,2]
[366462117,1750267838990,-151.0,0.00016438,2]
[366462119,1750267838999,-151.0,0.00016438,2]
[366462121,1750267839009,-151.0,0.00016438,2]
[366462123,1750267839018,-151.0,0.00016438,2]
[366462125,1750267839028,-151.0,0.00016438,2]
[366462127,1750267839037,-151.0,0.00016438,2]
[366462129,1750267839047,-151.0,0.00016438,2]
[366462131,1750267839056,-151.0,0.00016438,2]
[366462133,1750267839065,-151.0,0.00016438,2]
[366462135,1750267839074,-151.0,0.00016438,2]
[366462137,1750267839084,-151.0,0.00016438,2]
[366462139,1750267839093,-151.0,0.00016438,2]
[366462141,1750267839103,-151.0,0.00016438,2]
[366462143,1750267839112,-151.0,0.00016438,2]
[366462145,1750267839121,-151.0,0.00016438,2]
[366462147,1750267839131,-151.0,0.00016438,2]
[366462149,1750267839141,-151.0,0.00016438,2]
[366462151,1750267839150,-327.749327,0.00016438,2]
[366462153,1750267839160,-327.749327,0.00016438,2]
[366462155,1750267839169,-327.749327,0.00016438,2]
[366462157,1750267839179,-327.749327,0.00016438,2]
[366462159,1750267839188,-151.400087,0.00016438,2]
[366462161,1750267839198,-151.0,0.00016438,2]
[366462163,1750267839207,-151.0,0.00016438,2]
[366462165,1750267839216,-151.0,0.00016438,2]
[366462167,1750267839226,-151.0,0.00016438,2]
[366462169,1750267839235,-151.0,0.00016438,2]
[366462171,1750267839244,-151.0,0.00016438,2]
[366462173,1750267839253,-204.202996,0.00016438,2]
[366462175,1750267839263,-151.0,0.00016438,2]
[366462177,1750267839272,-151.0,0.00016438,2]
[366462179,1750267839282,-151.0,0.00016438,2]
[366462181,1750267839291,-151.0,0.00016438,2]
[366462183,1750267839301,-151.0,0.00016438,2]
[366462185,1750267839310,-151.0,0.00016438,2]
[366462187,1750267839320,-151.0,0.00016438,2]
[366462189,1750267839329,-151.0,0.00016438,2]
[366462191,1750267839338,-151.0,0.00016438,2]
[366462193,1750267839349,-151.0,0.00016438,2]
[366462195,1750267839359,-151.0,0.00016438,2]
[366462197,1750267839369,-234.130045,0.00016438,2]
[366462199,1750267839379,-151.0,0.00016438,2]
[366462201,1750267839388,-151.0,0.00016438,2]
[366462203,1750267839398,-151.0,0.00016438,2]
[366462205,1750267839407,-151.0,0.00016438,2]
[366462207,1750267839417,-151.0,0.00016438,2]
[366462209,1750267839427,-151.0,0.00016438,2]
[366462211,1750267839436,-151.0,0.00016438,2]
[366462213,1750267839445,-151.0,0.00016438,2]
[366462215,1750267839455,-151.0,0.00016438,2]
[366462217,1750267839464,-151.0,0.00016438,2]
[366462219,1750267839474,-151.0,0.00016438,2]
[366462221,1750267839483,-151.0,0.00016438,2]
[366462223,1750267839493,-151.0,0.00016438,2]
[366462225,1750267839502,-295.197722,0.00016438,2]
[366462227,1750267839511,-151.0,0.00016438,2]
[366462229,1750267839521,-151.0,0.00016438,2]
[366462231,1750267839531,-151.0,0.00016438,2]
[366462234,1750267839540,-151.0,0.00016438,2]
[366462235,1750267839549,-248.44914,0.00016438,2]
[366462269,1750267839847,-307.15599,0.00016438,2]
[366462273,1750267839876,-307.15599,0.00016438,2]
[366462275,1750267839889,-307.15599,0.00016438,2]
[366462277,1750267839899,-307.15599,0.00016438,2]
[366462279,1750267839909,-307.15599,0.00016438,2]
[366462281,1750267839919,-307.15599,0.00016438,2]
[366462283,1750267839929,-307.15599,0.00016438,2]
[366462285,1750267839938,-307.15599,0.00016438,2]
[366462287,1750267839947,-307.15599,0.00016438,2]
[366462289,1750267839957,-307.15599,0.00016438,2]
[366462291,1750267839966,-307.15599,0.00016438,2]
[366462293,1750267839976,-307.15599,0.00016438,2]
[366462295,1750267839986,-307.15599,0.00016438,2]
[366462297,1750267839995,-307.15599,0.00016438,2]
[366462299,1750267840005,-307.15599,0.00016438,2]
[366462301,1750267840014,-307.15599,0.00016438,2]
[366462303,1750267840024,-151.0,0.00016438,2]
[366462306,1750267840034,-151.0,0.00016438,2]
[366462308,1750267840044,-282.37322,0.00016438,2]
[366462310,1750267840053,-151.0,0.00016438,2]
[366462313,1750267840063,-195.313214,0.00016438,2]
[366462314,1750267840072,-151.0,0.00016438,2]
[366462317,1750267840082,-151.0,0.00016438,2]
[366462318,1750267840091,-234.512948,0.00016438,2]
[366462321,1750267840102,-200.0,0.00016438,2]
[366462322,1750267840112,-200.0,0.00016438,2]
[366462325,1750267840121,-803.49742961,0.00016438,2]
[366462326,1750267840131,-2946.501725,0.00016438,2]
[366462330,1750267840141,-2740.519106,0.00016438,2]
[366462332,1750267840151,-5888.82275,0.00016438,2]
[366462334,1750267840161,-5888.82275,0.00016438,2]
[366462336,1750267840171,-5888.82275,0.00016438,2]
[366462338,1750267840180,-500.0,0.00016438,2]
[366462340,1750267840190,-500.0,0.00016438,2]
[366462342,1750267840200,-500.0,0.00016438,2]
[366462344,1750267840209,-500.0,0.00016438,2]
[366462346,1750267840220,-500.0,0.00016438,2]
[366462348,1750267840229,-500.0,0.00016438,2]
[366462350,1750267840239,-500.0,0.00016438,2]
[366462352,1750267840249,-500.0,0.00016438,2]
[366462354,1750267840260,-500.0,0.00016438,2]
[366462356,1750267840272,-500.0,0.00016438,2]
[366462358,1750267840282,-500.0,0.00016438,2]
[366462359,1750267840297,-500.0,0.00016438,2]
[366462360,1750267840307,-500.0,0.00016438,2]
[366462361,1750267840317,-500.0,0.00016438,2]
[366462362,1750267840327,-500.0,0.00016438,2]
[366462363,1750267840337,-500.0,0.00016438,2]
[366462364,1750267840347,-500.0,0.00016438,2]
[366462365,1750267840357,-500.0,0.00016438,2]
[366462366,1750267840367,-500.0,0.00016438,2]
[366462367,1750267840378,-350.00000001,0.00016438,2]
[366462368,1750267840389,-500.0,0.00016438,2]
[366462369,1750267840399,-500.0,0.00016438,2]
[366462370,1750267840408,-500.0,0.00016438,2]
[366462371,1750267840418,-500.0,0.00016438,2]
[366462372,1750267840427,-500.0,0.00016438,2]
[366462373,1750267840438,-500.0,0.00016438,2]
[366462375,1750267840448,-500.0,0.00016438,2]
[366462378,1750267840458,-500.0,0.00016438,2]
[366462380,1750267840467,-500.0,0.00016438,2]
[366462381,1750267840476,-500.0,0.00016438,2]
[366462383,1750267840486,-500.0,0.00016438,2]
[366462385,1750267840495,-500.0,0.00016438,2]
[366462387,1750267840504,-500.0,0.00016438,2]
[366462389,1750267840513,-500.0,0.00016438,2]
[366462391,1750267840523,-500.0,0.00016438,2]
[366462394,1750267840537,-500.0,0.00016438,2]
[366462396,1750267840546,-500.0,0.00016438,2]
[366462398,1750267840556,-500.0,0.00016438,2]
[366462400,1750267840566,-500.0,0.00016438,2]
[366462402,1750267840575,-500.0,0.00016438,2]
[366462404,1750267840585,-500.0,0.00016438,2]
[366462406,1750267840594,-500.0,0.00016438,2]
[366462408,1750267840604,-500.0,0.00016438,2]
[366462410,1750267840615,-500.78346227,0.00016438,2]
[366462412,1750267840624,-500.78346227,0.00016438,2]
[366462414,1750267840634,-500.78346227,0.00016438,2]
[366462416,1750267840644,-500.78346227,0.00016438,2]
[366462418,1750267840654,-500.78346227,0.00016438,2]
[366462420,1750267840663,-500.78346227,0.00016438,2]
[366462422,1750267840673,-500.78346227,0.00016438,2]
[366462424,1750267840683,-500.78346227,0.00016438,2]
[366462426,1750267840692,-500.78346227,0.00016438,2]
[366462428,1750267840702,-500.78346227,0.00016438,2]
[366462430,1750267840712,-500.78346227,0.00016438,2]
[366462432,1750267840722,-500.78346227,0.00016438,2]
[366462434,1750267840732,-500.78346227,0.00016438,2]
[366462436,1750267840741,-500.78346227,0.00016438,2]
[366462438,1750267840751,-500.78346227,0.00016438,2]
[366462440,1750267840760,-500.78346227,0.00016438,2]
[366462442,1750267840770,-500.78346227,0.00016438,2]
[366462444,1750267840779,-500.78346227,0.00016438,2]
[366462446,1750267840789,-500.78346227,0.00016438,2]
[366462448,1750267840799,-500.78346227,0.00016438,2]
[366462450,1750267840808,-500.78346227,0.00016438,2]
[366462452,1750267840818,-500.78346227,0.00016438,2]
[366462454,1750267840828,-500.78346227,0.00016438,2]
[366462456,1750267840837,-500.78346227,0.00016438,2]
[366462458,1750267840850,-500.78346227,0.00016438,2]
[366462460,1750267840860,-500.78346227,0.00016438,2]
[366462462,1750267840870,-500.78346227,0.00016438,2]
[366462464,1750267840879,-500.78346227,0.00016438,2]
[366462466,1750267840890,-500.78346227,0.00016438,2]
[366462469,1750267840900,-500.78346227,0.00016438,2]
[366462471,1750267840911,-500.78346227,0.00016438,2]
[366462473,1750267840922,-500.78346227,0.00016438,2]
[366462475,1750267840932,-500.78346227,0.00016438,2]
[366462477,1750267840941,-500.78346227,0.00016438,2]
[366462479,1750267840951,-500.78346227,0.00016438,2]
[366462481,1750267840961,-500.78346227,0.00016438,2]
[366462483,1750267840970,-500.78346227,0.00016438,2]
[366462485,1750267840979,-500.78346227,0.00016438,2]
[366462487,1750267840989,-500.78346227,0.00016438,2]
[366462489,1750267840999,-500.78346225,0.00016438,2]
[366462491,1750267841008,-500.78346225,0.00016438,2]
[366462493,1750267841018,-500.78346225,0.00016438,2]
[366462495,1750267841027,-500.78346225,0.00016438,2]
[366462497,1750267841037,-500.78346225,0.00016438,2]
[366462499,1750267841046,-500.78346225,0.00016438,2]
[366462501,1750267841055,-500.78346225,0.00016438,2]
[366462503,1750267841065,-1198.0,0.00016438,2]
[366462505,1750267841074,-500.0,0.00016438,2]
[366462508,1750267841084,-600.0,0.00016438,4]
[366462510,1750267841094,-500.41,0.00016438,2]
[366462512,1750267841103,-304.01,0.00016438,2]
[366462514,1750267841113,-497.8,0.00016438,2]
[366462516,1750267841123,-502.94,0.00016438,2]
[366462518,1750267841132,-303.56,0.00016438,2]
[366462520,1750267841142,-505.04,0.00016438,2]
[366462522,1750267841151,-500.34,0.00016438,2]
[366462524,1750267841160,-302.86,0.00016438,2]
[366462526,1750267841169,-496.1,0.00016438,2]
[366462528,1750267841178,-301.67,0.00016438,2]
[366462530,1750267841189,-508.23,0.00016438,2]
[366462532,1750267841199,-491.05,0.00016438,2]
[366462534,1750267841208,-300.81,0.00016438,2]
[366462536,1750267841217,-507.11,0.00016438,2]
[366462538,1750267841229,-499.11,0.00016438,2]
[366462540,1750267841239,-151.0,0.00016438,2]
[366462542,1750267841248,-6186.28,0.00016438,2]
[366462544,1750267841258,-151.0,0.00016473,2]
[366462546,1750267841268,-1717.11,0.000166,2]
[366462548,1750267841277,-3000.0,0.000166,2]
[366462550,1750267841287,-3000.0,0.000166,2]
[366462552,1750267841296,-3000.0,0.000166,2]
[366462554,1750267841306,-3004.38,0.000166,2]
[366462556,1750267841316,-307.15599,0.000166,2]
[366462558,1750267841325,-307.15599,0.000166,2]
[366462560,1750267841335,-18939.65751061,0.000166,3]
[366462562,1750267841345,-833.92080167,0.000166,3]
[366462564,1750267841355,-151.0,0.000166,2]
[366462566,1750267841365,-164.005556,0.000166,2]
[366462568,1750267841375,-164.005556,0.000166,2]
[366462570,1750267841384,-151.0,0.000166,2]
[366462572,1750267841394,-151.0,0.000166,2]
[366462574,1750267841404,-241.643303,0.000166,2]
[366462576,1750267841414,-151.0,0.000166,2]
[366462578,1750267841424,-151.0,0.000166,2]
[366462580,1750267841434,-158.067774,0.000166,2]
[366462582,1750267841443,-151.0,0.000166,2]
[366462584,1750267841453,-200.0,0.00016602,2]
[366462586,1750267841462,-151.0,0.00016684,2]
[366462589,1750267841472,-500.0,0.00016702,2]
[366462591,1750267841482,-150.0,0.00016744,2]
[366462593,1750267841492,-200.0,0.00016768,2]
[366462595,1750267841501,-173.040832,0.00016777,2]
[366462597,1750267841511,-327.749327,0.00016777,2]
[366462599,1750267841521,-500.0,0.00016812,2]
[366462601,1750267841530,-527.36708378,0.00016812,2]
[366462603,1750267841541,-500.0,0.00016812,2]
[366462605,1750267841550,-2989.26202407,0.00016836,2]
[366462607,1750267841560,-990.9153056,0.00016836,2]
[366462609,1750267841570,-500.32123604,0.00016838,2]
[366462611,1750267841579,-500.0,0.00016838,2]
[366462613,1750267841589,-500.0,0.00016838,2]
[366462615,1750267841598,-500.0,0.00016838,2]
[366462617,1750267841607,-500.0,0.00016838,2]
[366462619,1750267841618,-500.0,0.00016838,2]
[366462621,1750267841627,-500.0,0.00016838,2]
[366462623,1750267841637,-500.0,0.00016856,2]
[366462625,1750267841647,-500.0,0.00016856,2]
[366462627,1750267841656,-500.0,0.00016856,2]
[366462629,1750267841666,-520.4382781,0.00016856,2]
[366462631,1750267841676,-500.0,0.00016856,2]
[366462633,1750267841685,-500.0,0.00016856,2]
[366462635,1750267841694,-500.46754569,0.00016856,2]
[366462637,1750267841704,-500.0,0.0001686,2]
[366462639,1750267841714,-513.09989691,0.00016874,2]
[366462641,1750267841723,-500.0,0.00016874,2]
[366462643,1750267841733,-201.0,0.00016875,3]
[366462645,1750267841742,-160.10644752,0.00016891,2]
[366462647,1750267841752,-500.0,0.00016891,2]
[366462649,1750267841761,-160.10190178,0.00016891,2]
[366462651,1750267841771,-500.0,0.00016891,2]
[366462653,1750267841780,-500.0,0.00016891,2]
[366462655,1750267841790,-500.0,0.00016891,2]
[366462657,1750267841799,-500.0,0.00016891,2]
[366462659,1750267841809,-500.0,0.00016891,2]
[366462661,1750267841820,-160.10125592,0.00016891,2]
[366462663,1750267841829,-500.0,0.00016891,2]
[366462665,1750267841841,-499.12934955,0.00016891,2]
[366462667,1750267841850,-535.97923939,0.00016891,2]
[366462669,1750267841860,-500.0,0.00016891,2]
[366462671,1750267841869,-151.0,0.000169,2]
[366462673,1750267841878,-151.0,0.000169,2]
[366462675,1750267841889,-162.929383,0.000169,2]
[366462677,1750267841898,-151.0,0.000169,2]
[366462679,1750267841907,-151.0,0.000169,2]
[366462681,1750267841918,-1482.198275,0.000169,2]
[366462683,1750267841927,-1482.198275,0.000169,2]
[366462685,1750267841937,-151.0,0.000169,2]
[366462687,1750267841946,-151.0,0.000169,2]
[366462689,1750267841957,-151.0,0.000169,2]
[366462691,1750267841966,-151.0,0.000169,2]
[366462693,1750267841975,-267.800273,0.000169,2]
[366462695,1750267841985,-1345.89003486,0.000169,2]
[366462697,1750267841995,-151.0,0.000169,2]
[366462699,1750267842005,-151.0,0.000169,2]
[366462701,1750267842014,-184.108387,0.000169,2]
[366462703,1750267842024,-151.0,0.000169,2]
[366462705,1750267842033,-184.108387,0.000169,2]
[366462707,1750267842042,-285.44286,0.00016902,2]
[366462709,1750267842052,-3000.0,0.00016978,2]
[366462711,1750267842063,-6646.50126318,0.00017,2]
[366462713,1750267842073,-151.0,0.00017,2]
[366462715,1750267842082,-373.48423101,0.00017099,2]
[366462717,1750267842091,-500.0,0.00017099,2]
[366462719,1750267842101,-463.97811404,0.00017099,2]
[366462721,1750267842111,-7305.53533622,0.000171,2]
[366462723,1750267842120,-1000.0,0.00017149,2]
[366462725,1750267842130,-2000.0,0.000172,2]
[366462727,1750267842140,-555.0,0.00017218,2]
[366462729,1750267842149,-151.0,0.0001724,2]
[366462731,1750267842159,-307.15599,0.0001724,2]
[366462733,1750267842168,-307.156,0.0001724,2]
[366462735,1750267842178,-600.0,0.00017288,2]
[366462737,1750267842187,-151.0,0.00017355,2]
[366462739,1750267842196,-151.0,0.00017355,2]
[366462741,1750267842205,-201.320719,0.00017355,2]
[366462743,1750267842215,-151.0,0.00017355,2]
[366462745,1750267842225,-151.0,0.00017355,2]
[366462747,1750267842235,-151.0,0.00017355,2]
[366462749,1750267842245,-151.0,0.00017355,2]
[366462751,1750267842254,-154.386857,0.00017355,2]
[366462753,1750267842263,-154.386857,0.00017355,2]
[366462755,1750267842273,-151.0,0.00017355,2]
[366462757,1750267842283,-2989.26202407,0.00017372,2]
[366462759,1750267842293,-163.15375829,0.00017385,2]
[366462761,1750267842303,-500.0,0.00017386,2]
[366462763,1750267842313,-500.0,0.00017386,2]
[366462765,1750267842323,-500.34831717,0.00017404,2]
[366462767,1750267842334,-1000.0,0.00017404,2]
[366462769,1750267842345,-500.0,0.00017404,2]
[366462771,1750267842354,-1000.0,0.00017408,2]
[366462773,1750267842364,-150.0,0.00017421,2]
[366462775,1750267842374,-500.0,0.00017422,2]
[366462777,1750267842384,-500.0,0.00017439,2]
[366462780,1750267842394,-500.0,0.00017439,2]
[366462782,1750267842404,-1000.0,0.00017439,2]
[366462784,1750267842414,-500.0,0.00017439,2]
[366462786,1750267842423,-500.0,0.00017439,2]
[366462788,1750267842433,-541.51335847,0.00017439,2]
[366462789,1750267842442,-500.0,0.00017439,2]
[366462791,1750267842451,-150.0,0.00017448,2]
[366462793,1750267842461,-200.0,0.00017479,2]
[366462795,1750267842470,-7305.53533614,0.0001758,2]
[366462797,1750267842480,-1345.89003471,0.0001759,2]
[366462800,1750267842490,-151.416514,0.000176,2]
[366462802,1750267842500,-151.0,0.000176,2]
[366462804,1750267842510,-151.0,0.000176,2]
[366462806,1750267842520,-151.0,0.000176,2]
[366462808,1750267842529,-151.0,0.00017669,2]
[366462810,1750267842539,-151.0,0.00017669,2]
[366462812,1750267842548,-535.2,0.00017669,2]
[366462814,1750267842558,-300.0,0.00017684,2]
[366462816,1750267842568,-300.0,0.00017684,2]
[366462818,1750267842578,-300.0,0.00017685,2]
[366462820,1750267842589,-151.0,0.000177,2]
[366462822,1750267842598,-151.0,0.000177,2]
[366462824,1750267842607,-159.082372,0.000177,2]
[366462826,1750267842617,-151.0,0.000177,2]
[366462828,1750267842626,-151.0,0.000177,2]
[366462830,1750267842636,-150.99,0.00017728,2]
[366462832,1750267842645,-1138.04,0.00017728,2]
[366462834,1750267842655,-6271.07,0.00017728,2]
[366462836,1750267842665,-150.99,0.00017728,2]
[366462838,1750267842674,-2625.4,0.00017728,2]
[366462840,1750267842684,-499.99,0.00017728,2]
[366462842,1750267842693,-9374.27,0.00017728,2]
[366462844,1750267842704,-1466.2,0.00017728,2]
[366462846,1750267842714,-231.79,0.00017728,4]
[366462848,1750267842723,-151.0,0.00017728,2]
[366462850,1750267842733,-243.295878,0.00017728,2]
[366462852,1750267842742,-151.0,0.00017728,2]
[366462854,1750267842752,-151.0,0.00017728,2]
[366462856,1750267842762,-151.0,0.00017728,2]
[366462858,1750267842771,-172.999272,0.00017728,2]
[366462860,1750267842781,-151.0,0.00017728,2]
[366462862,1750267842791,-151.0,0.00017728,2]
[366462864,1750267842800,-151.0,0.00017728,2]
[366462866,1750267842809,-151.0,0.00017728,2]
[366462868,1750267842819,-151.0,0.00017728,2]
[366462870,1750267842828,-151.0,0.00017728,2]
[366462872,1750267842839,-151.0,0.00017728,2]
[366462874,1750267842850,-151.0,0.00017728,2]
[366462876,1750267842859,-151.0,0.00017728,2]
[366462878,1750267842869,-291.664686,0.00017728,2]